{"text_format":"1","workbook":"xlsx","n_sheets":8,"sheets":["Infos","Versionsinfo","Auswertung_W","Auswertung_M","Vorlage","Listen","Punktetabellen","Standsprünge"],"not_rendered":{"charts":0,"images":0,"macros":1,"external_links":0,"defined_names":4,"comments":3,"pivot_tables":0},"unopened":[],"bounds":{"document_bytes":16777216,"sheet_cells":100000,"rows_first":2000,"rows_last":500,"rows_between":2000,"halvings":0,"cell_chars":16384,"cell_head_chars":4096},"cells_cut":0,"cells_raw":0,"read":"whole","date_system":"1900"}

{"sheet":"Infos","index":0,"n_rows":16,"n_cols":1,"rows_kept":16,"cut":false,"hidden":false,"merged":[]}
["Wertungsbögen zum bundeseinheitlichen Leistungsvoraussetzungstest"]
["Kadertest Stand 09.07.2019"]
[]
[]
[]
[]
[]
["Löschen von Teilnehmern\n- Zeile in Auswertungsblatt markieren, Rechtsklick, \" Zellen löschen\"\n- Aktivenblatt löschen"]
[]
["Änderungen an Teilnehmerdaten\nVerein und Jahrgang lassen sich auf der jeweiligen Aktivenkarte ändern und\nwerden auf dem Auswertungsblatt übernommen"]
[]
["Passwort zum Bearbeiten von Zellen\nKadertest"]
[]
["Makros in Excel zulassen\nDatei --> Optionen --> Trust Center --> Einstellungen für das Trust Center --> Makroeinstellungen --> Alle Makros aktivieren"]
[]
["Korbinian Hauck, 14.07.2019"]

{"sheet":"Versionsinfo","index":1,"n_rows":4,"n_cols":3,"rows_kept":4,"cut":false,"hidden":true,"merged":[]}
["Version","Datum","Änderungen"]
["2019_v1","2019-07-09","Erstanlage mit Bewertungstabelle für 2019"]
["2019_v2","2019-07-12","Gesamt-Mindestwert eingefügt"]
["2019_v3","2019-07-14","Formatierungen angepasst"]

{"sheet":"Auswertung_W","index":2,"n_rows":26,"n_cols":39,"rows_kept":26,"cut":false,"hidden":false,"merged":[]}
["Rang","Name","Jg","AK","Verein","FD","BM","BBW","QSL","QSR","Punktzahl Beweglichkeit","KLZ","BEH","FLG","RV","PS","HAST","SW","Bleep","Punktzahl\nKraft/Kondition","SSH","TBN 1","TBN 2","TBN 3","TN 1","TN 2","TN 3","TN 4","TN 5","TN 6","TV","Punktzahl\nTrampolin","Punktzahl\nBKÜ","Gesamtpunkte","Summe Kraft, Beweglichkeit, BKÜ","Mindestwert Kombi erfüllt?","Erforderter Mindestwert","Gesamtwert erfüllt?","Alles erfüllt?"]
[1]
[2]
[3]
[4]
[5]
[6]
[7]
[8]
[9]
[10]
[11]
[12]
[13]
[14]
[15]
[16]
[17]
[18]
[19]
[20]
[21]
[22]
[23]
[24]
[25]

{"sheet":"Auswertung_M","index":3,"n_rows":26,"n_cols":39,"rows_kept":26,"cut":false,"hidden":false,"merged":[]}
["Rang","Name","Jg","AK","Verein","FD","BM","BBW","QSL","QSR","Punktzahl Beweglichkeit","KLZ","BEH","FLG","RV","PS","HAST","SW","Bleep","Punktzahl\nKraft/Kondition","SSH","TBN 1","TBN 2","TBN 3","TN 1","TN 2","TN 3","TN 4","TN 5","TN 6","TV","Punktzahl\nTrampolin","Punktzahl\nBKÜ","Gesamtpunkte","Summe Kraft, Beweglichkeit, BKÜ","Mindestwert Kombi erfüllt?","Mindestwert Gesamt","Gesamtwert erfüllt?","Alles erfüllt?"]
[1]
[2]
[3]
[4]
[5]
[6]
[7]
[8]
[9]
[10]
[11]
[12]
[13]
[14]
[15]
[16]
[17]
[18]
[19]
[20]
[21]
[22]
[23]
[24]
[25]

{"sheet":"Vorlage","index":4,"n_rows":79,"n_cols":8,"rows_kept":79,"cut":false,"hidden":true,"merged":[[19,0,19,2],[18,0,18,6],[48,0,48,3],[21,0,21,1],[22,0,22,1],[20,0,20,2],[31,0,31,1],[32,0,32,1],[30,0,30,1],[40,0,40,3],[41,0,41,3],[42,0,42,3],[51,0,51,6],[35,0,35,1],[36,0,36,6],[50,0,50,6],[23,0,23,1],[38,0,38,3],[39,0,39,3],[37,0,37,3],[43,0,43,3],[44,0,44,3],[45,0,45,3],[46,0,46,3],[33,0,33,1],[34,0,34,1],[49,0,49,3],[47,0,47,3],[0,1,0,4],[2,0,2,4],[3,0,3,4],[4,0,4,4],[5,0,5,4],[1,1,1,5],[15,0,15,4],[17,0,17,4],[6,0,6,4],[7,0,7,4],[9,0,9,4],[10,0,10,4],[11,0,11,4],[8,0,8,6],[14,0,14,4],[12,0,12,4],[13,0,13,4],[16,0,16,1]]}
["Name","NAME",null,null,null,"weiblich","Jahrgang",2010]
["Verein","VEREIN",null,null,null,null,"AK",{"$f":"2020-H1","v":10}]
["Übung",null,null,null,null,"Wert","Berechnung","Punkte"]
["Fußdehnung",null,null,null,null,null,"Bild",{"$f":"F4","v":0}]
["Briefmarke mit Armrumpfwinkel",null,null,null,null,null,"Bild",{"$f":"F5","v":0}]
["Bückbeweglichkeit",null,null,null,null,null,"Tabelle",{"$f":"IF(F6=\"\",0,VLOOKUP(F6,Punktetabellen!A10:B15,2,1))","v":0}]
["Querspagat links",null,null,null,null,null,"Tabelle",{"$f":"IF(F7=\"\",0,VLOOKUP(F7,Punktetabellen!A3:B6,2,0))","v":0}]
["Querspagat rechts",null,null,null,null,null,"Tabelle",{"$f":"IF(F8=\"\",0,VLOOKUP(F8,Punktetabellen!A3:B6,2,0))","v":0}]
["Gesamtpunktzahl Beweglichkeit",null,null,null,null,null,null,{"$f":"SUM(H4:H8)","v":0}]
["Übung",null,null,null,null,"Wert","Berechnung","Punktzahl"]
["Klimmzug",null,null,null,null,null,"Tabelle",{"$f":"IF(F11=\"\",0,IF(H2<12,VLOOKUP(F11,Punktetabellen!D4:F14,3,1),VLOOKUP(F11,Punktetabellen!E4:F14,2,1)))","v":0}]
["Beinheben",null,null,null,null,null,"Tabelle",{"$f":"IF(H2=9,VLOOKUP(F12,Punktetabellen!D19:F29,3,1),VLOOKUP(F12,Punktetabellen!E19:F29,2,1))","v":0}]
["Flieger",null,null,null,null,null,"Tabelle",{"$f":"IF(H2=9,VLOOKUP(F13,Punktetabellen!H4:K9,4,1),IF(H2<12,VLOOKUP(F13,Punktetabellen!I4:K9,3,1),VLOOKUP(F13,Punktetabellen!J4:K9,2,1)))","v":0}]
["Rollenverbindung",null,null,null,null,null,"Tabelle",{"$f":"IF(H2=9,VLOOKUP(F14,Punktetabellen!H14:K24,4,1),IF(H2<12,VLOOKUP(F14,Punktetabellen!I14:K24,3,1),VLOOKUP(F14,Punktetabellen!J14:K24,2,1)))","v":0}]
["Prellsprünge",null,null,null,null,null,"Tabelle",{"$f":"IF(H2=9,VLOOKUP(F15,Punktetabellen!M4:Q14,5,1),IF(H2<12,VLOOKUP(F15,Punktetabellen!N4:Q14,4,1),IF(H2<14,VLOOKUP(F15,Punktetabellen!O4:Q14,3,1),VLOOKUP(F15,Punktetabellen!P4:Q14,2,1))))","v":0}]
["Handstandstehen",null,null,null,null,null,"Tabelle",{"$f":"IF(F16=\"\",0,IF(H2<10,VLOOKUP(F16,Punktetabellen!D34:F40,3,1),VLOOKUP(F16,Punktetabellen!E34:F40,2,1)))","v":0}]
["Schweizer, Wiener",null,{"$f":"IF(H2<12,\"\",IF(AND(H2>13,H2<17),\"Schweizer: \",\"Wiener: \"))","v":""},null,{"$f":"IF(H2<12,\"\",IF(AND(H2>13,H2<17),\"Wiener: \",\"Schweizer: \"))","v":""},null,"Tabelle",{"$f":"IF(H2<12,VLOOKUP(F17,Punktetabellen!A20:B25,2,1),((MIN(5,1*D17)*2)+MIN(MAX(0,5-(1*D17)),(1*F17))))","v":0}]
["Bleep-Test",null,null,null,null,null,"Tabelle",{"$f":"IF(F18=\"\",0,VLOOKUP(F18,INDIRECT(C55),2,0))","v":0}]
["Gesamtpunktzahl Kraft/Kondition",null,null,null,null,null,null,{"$f":"SUM(H11:H18)","v":0}]
["Übung",null,null,"Max / Soll","Max. Abzug","Abzug / Ist","Berechnung","Punkte"]
["Standsprunghöhe",null,null,{"$f":"IF(F1=\"männlich\",VLOOKUP(H2,Standsprünge!A3:C15,3,0),VLOOKUP(H2,Standsprünge!A3:B15,2,0))","v":13.5},null,null,"(Ist - Soll) x 10",{"$f":"IF(F21=\"\",0,(F21-D21)*10)","v":0}]
[{"$f":"IF(H2>16,\"entfällt\",\"TBN\")","v":"TBN"},null,null,{"$f":"IF(C22=\"\",\"\",VLOOKUP(C22,INDIRECT($C$62),2,0))","v":""},{"$f":"IF(C22=\"\",\"\",VLOOKUP(C22,INDIRECT($C$62),3,0))","v":""},null,{"$f":"IF(H2>16,\"entfällt\",\"Wert - Abzug\")","v":"Wert - Abzug"},{"$f":"IF(A22=\"entfällt\",0,IF(F22=\"\",0,D22-F22))","v":0}]
[{"$f":"IF(H2>16,\"entfällt\",\"TBN\")","v":"TBN"},null,null,{"$f":"IF(C23=\"\",\"\",VLOOKUP(C23,INDIRECT($C$62),2,0))","v":""},{"$f":"IF(C23=\"\",\"\",VLOOKUP(C23,INDIRECT($C$62),3,0))","v":""},null,{"$f":"IF(H2>16,\"entfällt\",\"Wert - Abzug\")","v":"Wert - Abzug"},{"$f":"IF(A23=\"entfällt\",0,IF(F23=\"\",0,D23-F23))","v":0}]
[{"$f":"IF(H2>12,\"entfällt\",\"TBN\")","v":"TBN"},null,null,{"$f":"IF(C24=\"\",\"\",VLOOKUP(C24,INDIRECT($C$62),2,0))","v":""},{"$f":"IF(C24=\"\",\"\",VLOOKUP(C24,INDIRECT($C$62),3,0))","v":""},null,{"$f":"IF(H2>16,\"entfällt\",\"Wert - Abzug\")","v":"Wert - Abzug"},0]
["TN",{"$f":"IF(C25=\"\",\"\",VLOOKUP(C25,INDIRECT($C$65),2,0))","v":""},null,{"$f":"IF(C25=\"\",\"\",VLOOKUP(C25,INDIRECT($C$65),3,0))","v":""},{"$f":"IF(C25=\"\",\"\",VLOOKUP(C25,INDIRECT($C$65),4,0))","v":""},null,"Wert - Abzug",0]
["TN","",null,"","",null,"Wert - Abzug",0]
["TN","",null,"","",null,"Wert - Abzug",0]
[{"$f":"IF(H2>12,\"TN\",\"entfällt\")","v":"entfällt"},"",null,"","",null,{"$f":"IF(H2>12,\"Wert - Abzug\",\"entfällt\")","v":"entfällt"},0]
[{"$f":"IF(H2>16,\"TN\",\"entfällt\")","v":"entfällt"},"",null,"","",null,{"$f":"IF(H2>16,\"Wert - Abzug\",\"entfällt\")","v":"entfällt"},0]
[{"$f":"IF(H2>16,\"TN\",\"entfällt\")","v":"entfällt"},"",null,"","",null,{"$f":"IF(H2>16,\"Wert - Abzug\",\"entfällt\")","v":"entfällt"},{"$f":"IF(A30=\"entfällt\",0,IF(F30=\"\",0,D30-F30))","v":0}]
[{"$f":"IF($H$2>11,\"Verbindung Sprung 1\",\"entfällt\")","v":"entfällt"},null,{"$f":"IF(A31<>\"entfällt\",VLOOKUP(1,INDIRECT($C$73),2,0),\"\")","v":""},{"$f":"IF(A31<>\"entfällt\",VLOOKUP(1,INDIRECT($C$73),3,0),\"\")","v":""},{"$f":"IF(A31<>\"entfällt\",VLOOKUP(1,INDIRECT($C$73),4,0),\"\")","v":""},null,{"$f":"IF(H2>12,\"Wert - Abzug\",\"entfällt\")","v":"entfällt"},{"$f":"IF(A31=\"entfällt\",0,IF(F31=\"\",0,D31-F31))","v":0}]
[{"$f":"IF($H$2>11,\"Verbindung Sprung 2\",\"entfällt\")","v":"entfällt"},null,{"$f":"IF(A32<>\"entfällt\",VLOOKUP(2,INDIRECT($C$73),2,0),\"\")","v":""},{"$f":"IF(A32<>\"entfällt\",VLOOKUP(2,INDIRECT($C$73),3,0),\"\")","v":""},{"$f":"IF(A32<>\"entfällt\",VLOOKUP(2,INDIRECT($C$73),4,0),\"\")","v":""},null,{"$f":"IF(H2>12,\"Wert - Abzug\",\"entfällt\")","v":"entfällt"},{"$f":"IF(A32=\"entfällt\",0,IF(F32=\"\",0,D32-F32))","v":0}]
[{"$f":"IF($H$2>11,\"Verbindung Sprung 3\",\"entfällt\")","v":"entfällt"},null,{"$f":"IF(A33<>\"entfällt\",VLOOKUP(3,INDIRECT($C$73),2,0),\"\")","v":""},{"$f":"IF(A33<>\"entfällt\",VLOOKUP(3,INDIRECT($C$73),3,0),\"\")","v":""},{"$f":"IF(A33<>\"entfällt\",VLOOKUP(3,INDIRECT($C$73),4,0),\"\")","v":""},null,{"$f":"IF(H2>12,\"Wert - Abzug\",\"entfällt\")","v":"entfällt"},0]
[{"$f":"IF($H$2>11,\"Verbindung Sprung 4\",\"entfällt\")","v":"entfällt"},null,{"$f":"IF(A34<>\"entfällt\",VLOOKUP(4,INDIRECT($C$73),2,0),\"\")","v":""},{"$f":"IF(A34<>\"entfällt\",VLOOKUP(4,INDIRECT($C$73),3,0),\"\")","v":""},{"$f":"IF(A34<>\"entfällt\",VLOOKUP(4,INDIRECT($C$73),4,0),\"\")","v":""},null,{"$f":"IF(H2>12,\"Wert - Abzug\",\"entfällt\")","v":"entfällt"},0]
[{"$f":"IF($H$2>11,\"Verbindung Sprung 5\",\"entfällt\")","v":"entfällt"},null,{"$f":"IF(A35<>\"entfällt\",VLOOKUP(5,INDIRECT($C$73),2,0),\"\")","v":""},{"$f":"IF(A35<>\"entfällt\",VLOOKUP(5,INDIRECT($C$73),3,0),\"\")","v":""},{"$f":"IF(A35<>\"entfällt\",VLOOKUP(5,INDIRECT($C$73),4,0),\"\")","v":""},null,{"$f":"IF(H2>12,\"Wert - Abzug\",\"entfällt\")","v":"entfällt"},0]
[{"$f":"IF($H$2>11,\"Verbindung Sprung 6\",\"entfällt\")","v":"entfällt"},null,{"$f":"IF(A36<>\"entfällt\",VLOOKUP(6,INDIRECT($C$73),2,0),\"\")","v":""},{"$f":"IF(A36<>\"entfällt\",VLOOKUP(6,INDIRECT($C$73),3,0),\"\")","v":""},{"$f":"IF(A36<>\"entfällt\",VLOOKUP(6,INDIRECT($C$73),4,0),\"\")","v":""},null,{"$f":"IF(H2>12,\"Wert - Abzug\",\"entfällt\")","v":"entfällt"},{"$f":"IF(A36=\"entfällt\",0,IF(F36=\"\",0,D36-F36))","v":0}]
["Gesamtpunktzahl Trampolin",null,null,null,null,null,null,{"$f":"SUM(H21:H36)","v":0}]
["Element",null,null,null,"Wert","Abzug","Berechnung","Punkte"]
[{"$f":"VLOOKUP(1,INDIRECT($C$70),2,0)","v":"Flugrolle mit Anlauf"},null,null,null,{"$f":"VLOOKUP(1,INDIRECT($C$70),3,0)","v":3},null,"Wert - Abzug",{"$f":"IF(E39=\" \",\"\",IF(F39=\"\",0,E39-F39))","v":0}]
[{"$f":"VLOOKUP(2,INDIRECT($C$70),2,0)","v":"Grätschwinkelsprung"},null,null,null,{"$f":"VLOOKUP(2,INDIRECT($C$70),3,0)","v":3},null,"Wert - Abzug",{"$f":"IF(E40=\" \",\"\",IF(F40=\"\",0,E40-F40))","v":0}]
[{"$f":"VLOOKUP(3,INDIRECT($C$70),2,0)","v":"Vorspreizen, Handstandhüpfer, Abrollen Hockstand"},null,null,null,{"$f":"VLOOKUP(3,INDIRECT($C$70),3,0)","v":3},null,"Wert - Abzug",0]
[{"$f":"VLOOKUP(4,INDIRECT($C$70),2,0)","v":"Absprung gehockt zum Handstand"},null,null,null,{"$f":"VLOOKUP(4,INDIRECT($C$70),3,0)","v":2},null,"Wert - Abzug",0]
[{"$f":"VLOOKUP(5,INDIRECT($C$70),2,0)","v":"1/2 Drehung, abrollen in den Stand"},null,null,null,{"$f":"VLOOKUP(5,INDIRECT($C$70),3,0)","v":4},null,"Wert - Abzug",0]
[{"$f":"VLOOKUP(6,INDIRECT($C$70),2,0)","v":"Vorspreizen, Beistellschritt, Strecksprung 1/1 Drehung"},null,null,null,{"$f":"VLOOKUP(6,INDIRECT($C$70),3,0)","v":3},null,"Wert - Abzug",0]
[{"$f":"VLOOKUP(7,INDIRECT($C$70),2,0)","v":"Vorspreizen, Standwaage"},null,null,null,{"$f":"VLOOKUP(7,INDIRECT($C$70),3,0)","v":2},null,"Wert - Abzug",0]
[{"$f":"VLOOKUP(8,INDIRECT($C$70),2,0)","v":"Vorspreizen, Standwaage andere Seite"},null,null,null,{"$f":"VLOOKUP(8,INDIRECT($C$70),3,0)","v":2},null,"Wert - Abzug",0]
[{"$f":"VLOOKUP(9,INDIRECT($C$70),2,0)","v":"Rolle rückwärts durch Handstand"},null,null,null,{"$f":"VLOOKUP(9,INDIRECT($C$70),3,0)","v":4},null,{"$f":"IF(H2>16,\"\",\"Wert - Abzug\")","v":"Wert - Abzug"},0]
[{"$f":"VLOOKUP(10,INDIRECT($C$70),2,0)","v":"Vorspreizen, Rad"},null,null,null,{"$f":"VLOOKUP(10,INDIRECT($C$70),3,0)","v":2},null,{"$f":"IF(H2>16,\"\",\"Wert - Abzug\")","v":"Wert - Abzug"},0]
[{"$f":"VLOOKUP(11,INDIRECT($C$70),2,0)","v":"Vorspreizen, Rad, andere Richtung"},null,null,null,{"$f":"VLOOKUP(11,INDIRECT($C$70),3,0)","v":2},null,{"$f":"IF(H2>13,\"\",\"Wert - Abzug\")","v":"Wert - Abzug"},0]
[{"$f":"VLOOKUP(12,INDIRECT($C$70),2,0)","v":" "},null,null,null,{"$f":"VLOOKUP(12,INDIRECT($C$70),3,0)","v":" "},null,{"$f":"IF(OR(H2=9,H2=12,H2=13),\"Wert - Abzug\",\"\")","v":""},""]
["Gesamtpunktzahl Bodenkomplexübung",null,null,null,null,null,null,{"$f":"SUM(H39:H50)","v":0}]
["Gesamtpunktzahl",null,null,null,null,null,null,{"$f":"SUM(H9,H19,H37,H51)","v":0}]
[]
[]
[null,"Shuttles",{"$f":"\"Shuttles_\"&F1&IF(H2=9,\"_9\",IF(H2<12,\"_10_11\",IF(H2<14,\"_12_13\",IF(H2<17,\"_14_16\",\"_17\"))))","v":"Shuttles_weiblich_10_11"}]
[null,null,{"$f":"\"Shuttles_\"&F1&IF(H2=9,\"_9\",IF(H2<12,\"_10_11\",IF(H2<14,\"_12_13\",IF(H2<17,\"_14_16\",\"_17\"))))&\"[Shuttle]\"","v":"Shuttles_weiblich_10_11[Shuttle]"}]
[null,null,{"$f":"\"Shuttles_\"&F1&IF(H2=9,\"_9\",IF(H2<12,\"_10_11\",IF(H2<14,\"_12_13\",IF(H2<17,\"_14_16\",\"_17\"))))&\"[Punkte]\"","v":"Shuttles_weiblich_10_11[Punkte]"}]
[]
[null,"G_TBN TN BKÜ",{"$f":"IF(H2<13,\"beide\",F1)","v":"beide"}]
[null,"AK",{"$f":"IF(OR(H2=9,H2=12),H2,IF(H2<12,\"10_11\",IF(H2<15,\"13_14\",IF(H2<17,\"15_16\",IF(H2<19,\"17_18\",19)))))","v":"10_11"}]
[]
[null,"TBN",{"$f":"\"TBN_\"&C59&\"_\"&C60","v":"TBN_beide_10_11"}]
[null,null,{"$f":"C62&\"[Beschreibung]\"","v":"TBN_beide_10_11[Beschreibung]"}]
[]
[null,"TN",{"$f":"\"TN_\"&C59&\"_\"&C60","v":"TN_beide_10_11"}]
[null,null,{"$f":"C65&\"[Beschreibung]\"","v":"TN_beide_10_11[Beschreibung]"}]
[]
[null,"TV",{"$f":"\"TV_\"&F1&\"_\"&C60","v":"TV_weiblich_10_11"}]
[]
[null,"BKÜ",{"$f":"\"BKÜ\"&IF(H2=9,\"_9\",IF(H2<12,\"_10_11\",IF(H2<14,\"_12_13\",IF(H2<17,\"_14_16\",\"_17\"))))","v":"BKÜ_10_11"}]
[]
[null,"G_TV",{"$f":"IF(H2<17,\"beide\",F1)","v":"beide"}]
[null,"TV",{"$f":"\"TV_\"&C72&\"_\"&C60","v":"TV_beide_10_11"}]
[]
[null,{"$f":"SUM(H19,H9,H51)","v":0},"Vergleichspunktzahl aus Kraft, Beweglichkeit, Grundlagenausdauer, Bodenübung"]
[null,{"$f":"IF(B75>95,\"Ja\",\"Nein\")","v":"Nein"},"Vergleichspunktzahl erfüllt?"]
[null,{"$f":"IF(F1=\"Weiblich\",VLOOKUP(H2,Punktetabellen!$D$43:$F$49,3,1),VLOOKUP(H2,Punktetabellen!$D$43:$F$49,2,1))","v":112},"Mindest-Gesamtwert"]
[null,{"$f":"IF(H52>=B77,\"Ja\",\"Nein\")","v":"Nein"},"Gesamtwert erfüllt?"]
[null,{"$f":"IF(AND(B76=\"Ja\",B78=\"Ja\"),\"Ja\",\"Nein\")","v":"Nein"},"Alles erfüllt?"]

{"sheet":"Listen","index":5,"n_rows":140,"n_cols":20,"rows_kept":140,"cut":false,"hidden":true,"merged":[[66,3,66,5],[112,0,112,1],[98,0,98,1],[84,0,84,1],[70,0,70,1],[127,0,127,1],[0,0,0,1],[56,0,56,1],[42,0,42,1],[28,0,28,1],[14,0,14,1],[56,3,56,5],[19,7,19,10],[9,7,9,10],[0,7,0,10],[0,3,0,5],[12,3,12,5],[24,3,24,5],[40,3,40,5],[49,3,49,5],[43,7,43,10],[33,7,33,10],[64,17,64,19],[48,17,48,19],[119,7,119,10],[105,7,105,10],[93,7,93,10],[82,7,82,10],[67,7,67,10],[54,7,54,10],[45,12,45,15],[54,12,54,15],[32,17,32,19],[16,17,16,19],[0,17,0,19],[0,12,0,15],[9,12,9,15],[18,12,18,15],[27,12,27,15],[36,12,36,15]]}
["Shuttles_weiblich_9",null,null,"TBN_beide_9",null,null,null,"TN_beide_9",null,null,null,null,"TV_beide_12",null,null,null,null,"BKÜ_9"]
["Shuttle","Punkte",null,"Beschreibung","Wert","MaxAbzug",null,"Beschreibung","Kürzel","Wert","MaxAbzug",null,"Element","Übung","Wert","MaxAbzug",null,"Element","Beschreibung","Wert"]
["vor L3 S4",0,null,"Sitz, Bauch, Sitz (3x)",3,1,null,"Salto rw c","40°rw",5,4,null,1,"40°",5,3,null,1,"Rolle vorwärts",3]
["L3 S4",1,null,"Sitz, 3/4 vw Salto Rücken, Sitz (3x)",4,2,null,"Salto rw b","40<rw",6,4,null,2,"41°",6,3,null,2,"Bückstand zum Liegestütz",1.5]
["L3 S8",2,null,"Sitz, halbe Schraube Bauch, Sitz (3x)",3,1,null,"Salto rw c zum Sitz","40°Srw",5,4,null,3,"40<",6,3,null,3,"Stützschraube links, rechts",3]
["L4 S4",3,null,"Rücken, Bücke Stand, Rücken (3x)",3,1,null,"Salto vw c","40°vw",5,4,null,4,"41<",6,3,null,4,"Grätschwinkelstand",1.5]
["L4 S9",4,null,"Rücken, 1/2 Schraube 1/2 Salto vw Rücken (3x)",4,2,null,"Salto vw b","40<vw",6,4,null,5,"40/",6,3,null,5,"Kopfstand",4.5]
["L5 S5",5,null,"Rücken, 1/1 Schraube Rücken (1x)",4,2,null,"2/1 Standsprüngschraube","04/",4,2,null,6,"02/",2,3,null,6,"Schiffchenposition",1.5]
["L5 S9",6,null,"Rücken, Muffel Stand, Rücken (3x)",4,2,null,null,null,null,null,null,null,null,null,null,null,7,"Drehung links, rechts",1.5]
["L6 S5",7,null,"Bauch, Bücke Bauch (3x)",3,1,null,"TN_beide_10_11",null,null,null,null,"TV_beide_13_14",null,null,null,null,8,"Kerze ohne Arme",3]
["L6 S10",8,null,"Bauch, 1/2 Salto rw Rücken, 1/2 Salto vw Bauch (3x)",4,2,null,"Beschreibung","Kürzel","Wert","MaxAbzug",null,"Element","Übung","Wert","MaxAbzug",null,9,"Abbücken, Strecken über Kerze",1.5]
["L7 S5",9,null,null,null,null,null,"Barani c","51°",6,4,null,1,"40/",6,3,null,10,"Rolle --> Stand, Strecksprung 1/2 Drehung",2.5]
["L7 S10",10,null,"TBN_beide_10_11",null,null,null,"Barani b","51<",6,4,null,2,"41/",6,3,null,11,"Rolle rückwärts",3]
[null,null,null,"Beschreibung","Wert","MaxAbzug",null,"3/4 rw c zum Bauch","30°B",3,1,null,3,"42/",7,3,null,12,"Vorspreizen, Rad",3.5]
["Shuttles_weiblich_10_11",null,null,"Bauch, 1/2 Schraube 1/2 Salto rw, Bauch (3x)",3,1,null,"3/4 rw b zum Bauch","30<B",3,1,null,4,"40°",5,3]
["Shuttle","Punkte",null,"Bauch, Handstand, Rücken, Bauch (3x)",4,2,null,"5/4 rw c zum Rücken","50°R",6,4,null,5,"41°",6,3]
["vor L3 S8",0,null,"Rücken, rw Bauch, rw Rücken (3x)",3,1,null,"3/4 vw a zum Rücken","30/R",3,1,null,6,"800°",10,3,null,"BKÜ_10_11","AK 10 - 11"]
["L3 S8",1,null,"Rücken, 1/1 Schraube Rücken (3x)",4,2,null,"Salto rw a","40/",6,4,null,null,null,null,null,null,"Element","Beschreibung","Wert"]
["L4 S4",2,null,"Sitz, 1/1 Schraube Sitz (1x)",3,1,null,null,null,null,null,null,"TV_beide_15_16",null,null,null,null,1,"Flugrolle mit Anlauf",3]
["L4 S9",3,null,"Rücken, Salto vw c Rücken (1x)",4,2,null,"TN_beide_12",null,null,null,null,"Element","Übung","Wert","MaxAbzug",null,2,"Grätschwinkelsprung",3]
["L5 S5",4,null,"Rücken, Salto vw b Rücken (1x)",5,4,null,"Beschreibung","Kürzel","Wert","MaxAbzug",null,1,"801<",13,3,null,3,"Vorspreizen, Handstandhüpfer, Abrollen Hockstand",3]
["L5 S9",5,null,"Rücken, 3/2 Schrauben 1/2 Salto vw Rücken (1x)",4,2,null,"Barani a","41/",6,4,null,2,"40<",6,3,null,4,"Absprung gehockt zum Handstand",2]
["L6 S5",6,null,"3/4 Salto vw a mit 1/2 Schraube (1x)",4,2,null,"Babyfliffis c","51°",7,6,null,3,"801°",11,3,null,5,"1/2 Drehung, abrollen in den Stand",4]
["L6 S10",7,null,null,null,null,null,"Babyfliffis b","51<",7,6,null,4,"40/",6,3,null,6,"Vorspreizen, Beistellschritt, Strecksprung 1/1 Drehung",3]
["L7 S5",8,null,"TBN_beide_12",null,null,null,"Babyfliffis a","51/",7,6,null,5,"41/",6,3,null,7,"Vorspreizen, Standwaage",2]
["L7 S10",9,null,"Beschreibung","Wert","MaxAbzug",null,"3/4 rw a zum Bauch","30/B",3,1,null,6,"800°",10,3,null,8,"Vorspreizen, Standwaage andere Seite",2]
["L8 S5",10,null,"Bauch, ganze Schraube Bauch (3x)",3,1,null,"Cody c","50°",6,4,null,null,null,null,null,null,9,"Rolle rückwärts durch Handstand",4]
[null,null,null,"Sitz, 2/1 Schraube Sitz (1x)",3,1,null,"Cody b","50<",7,6,null,"TV_weiblich_17_18",null,null,null,null,10,"Vorspreizen, Rad",2]
["Shuttles_weiblich_12_13",null,null,"Rücken, 2/1 Schraube Rücken (1x)",4,2,null,"7/4 vw c zum Rücken","700°R",8,6,null,"Element","Übung","Wert","MaxAbzug",null,11,"Vorspreizen, Rad, andere Richtung",2]
["Shuttle","Punkte",null,"Rücken, Bauch, Rücken vw (3x)",3,1,null,"7/4 vw b zum Rücken","700<R",9,6,null,1,"803<",15,3,null,12," "," "]
["vor L4 S9",0,null,"Rücken, Salto vw b Rücken (3x)",6,4,null,"Schraubensalto","42/",7,6,null,2,"40<",6,3]
["L4 S9",1,null,"Rücken, Schraubensalto vw Rücken (1x)",6,4,null,"Doppelsalto rw c","800°",10,6,null,3,"801<",13,3]
["L5 S5",2,null,"Rücken, Salto vw a Rücken (3x)",6,4,null,null,null,null,null,null,4,"40/",6,3,null,"BKÜ_12_13","AK 12 - 13"]
["L5 S9",3,null,"Rücken, 3/2 Schrauben 1/2 Salto vw Rücken (3x)",5,4,null,"TN_weiblich_13_14",null,null,null,null,5,"41/",6,3,null,"Element","Beschreibung","Wert"]
["L6 S5",4,null,"Rücken, Salto vw c Rücken (5x)",5,4,null,"Beschreibung","Kürzel","Wert","MaxAbzug",null,6,"811°",12,3,null,1,"Salto vorwärts mit Anlauf",3]
["L6 S10",5,null,"5/4 rw b Rücken (1x)",7,6,null,"Rudolf","43/",8,6,null,null,null,null,null,null,2,"Handstand, 1/1 Drehung, Abrollen",3]
["L7 S5",6,null,"3/4 vw a mit 1/1 Schraube (1x)",5,4,null,"Babyrudi","53/",9,6,null,"TV_weiblich_19",null,null,null,null,3,"Strecksprung 1/2 Drehung",1.5]
["L7 S10",7,null,"3/4 rw a mit 3/2 Schraube (1x)",6,4,null,"Fliffis c","801°",11,6,null,"Element","Übung","Wert","MaxAbzug",null,4,"Vorspreizen, Handstandhüpfer, Abrollen Grätschsitz",1.5]
["L8 S5",8,null,"5/4 vw mit 3/2 Schraube c (Babyrudi c)",9,6,null,"Fliffis b","801<",13,6,null,1,"803<",15,3,null,5,"Briefmarke, Rückgrätschen --> Bauchlage",3]
["L8 S11",9,null,null,null,null,null,"Doppelsalto rw b","800<",12,6,null,2,"40<",6,3,null,6,"Kniestand, Abdrücken gebückt --> Handstand, abrollen",3]
["L9 S5",10,null,"TBN_weiblich_13_14",null,null,null,"1/2 ein 1/2 aus c","811°",12,6,null,3,"801<",13,3,null,7,"Vorspreizen, Standwaage --> abrollen, einbeinig rechts auf",3.5]
[null,null,null,"Beschreibung","Wert","MaxAbzug",null,"Doppelschraube rw","44/",9,6,null,4,"40/",6,3,null,8,"Vorspreizen, Standwaage --> abrollen, einbeinig links auf",3.5]
["Shuttles_weiblich_14_16",null,null,"7/4 vw c zum Rücken, platt, Arme angelegt",8,6,null,null,null,null,null,null,5,"41/",6,3,null,9,"Rolle rückwärts durch Handstand",3]
["Shuttle","Punkte",null,"7/4 vw b zum Rücken, platt, Arme angelegt",9,6,null,"TN_weiblich_15_16",null,null,null,null,6,"811<",14,3,null,10,"Strecksprung 1/2 Drehung",1]
["vor L5 S5",0,null,"7/4 rw c zum Rücken, 1/2 Schraube ein",9,6,null,"Beschreibung","Kürzel","Wert","MaxAbzug",null,null,null,null,null,null,11,"Sprungrolle mit Anlauf",2]
["L5 S5",1,null,"7/4 rw b zum Rücken, 1/2 Schraube ein",9,6,null,"Fliffisrudi c","803°",13,6,null,"TV_männlich_17_18",null,null,null,null,12,"Strecksprung 1/1 Drehung",2]
["L5 S9",2,null,"2/1 Salto vw c aus der Rückenlage",10,6,null,"Fliffisrudi b","803<",15,6,null,"Element","Übung","Wert","MaxAbzug"]
["L6 S5",3,null,"5/4 vw mit 3/2 Schraube b (Babyrudy b)",9,6,null,"1/2 ein 1/2 aus b","811<",14,6,null,1,"803<",15,3]
["L6 S10",4,null,null,null,null,null,"1/1 ein 0 aus c","820°",12,6,null,2,"800°",10,3,null,"BKÜ_14_16","AK 14 - 16"]
["L7 S5",5,null,"TBN_weiblich_15_16",null,null,null,"0 ein 1/1 aus c","802°",12,6,null,3,"801<",13,3,null,"Element","Beschreibung","Wert"]
["L7 S10",6,null,"Beschreibung","Wert","MaxAbzug",null,"Doppelsalto rw a","800/",12,6,null,4,"40/",6,3,null,1,"Flugrolle mit Überstrecken mit Anlauf",3]
["L8 S5",7,null,"7/4 Salto vw c zum Rücken, 1/1 aus",10,6,null,"1/1 ein 1/2 aus c","821°",13,6,null,5,"801°",11,3,null,2,"--> Strecksprung, Salto vorwärts gehockt",4.5]
["L8 S11",8,null,"7/4 Salto vw b zum Rücken, 1/1 aus",10,6,null,"1/1 ein 1/2 aus b","821<",15,6,null,6,"811°",12,3,null,3,"Vorspreizen, Handstand mit 1/1 Drehung, abrollen",3]
["L9 S5",9,null,"11/4 (2 3/4) Salto vw c zum Rücken",13,6,null,null,null,null,null,null,null,null,null,null,null,4,"--> Aufstehen mit gestreckten Beinen",3]
["L9 S11",10,null,"7/4 Salto rw c, 1/1 ein 1/2 aus",11,6,null,"TN_weiblich_17_18",null,null,null,null,"TV_männlich_19",null,null,null,null,5,"Vorspreizen, Bestellschritt, Strecksprung 3/2 Drehung",3]
[null,null,null,null,null,null,null,"Beschreibung","Kürzel","Wert","MaxAbzug",null,"Element","Übung","Wert","MaxAbzug",null,6,"Salto rückwärts gehockt",3]
["Shuttles_weiblich_17",null,null,"TBN_männlich_13_14",null,null,null,"Fliffisrudi b","803<",15,6,null,1,"12001<",20,3,null,7,"Handstützüberschlag",3]
["Shuttle","Punkte",null,"Beschreibung","Wert","MaxAbzug",null,"1/1 ein 1/2 aus b","821<",15,6,null,2,"40<",6,3,null,8,"--> Ansprung Schrittstellung, Handstand mit zwei Hüpfern",3]
["vor L6 S5",0,null,"7/4 vw c zum Rücken, platt, Arme angelegt",8,6,null,"1/2 ein 1/2 aus b","811<",14,6,null,3,"12001°",17,3,null,9,"Abrollen --> Strecksprung 1/2 Drehung",1.5]
["L6 S5",1,null,"7/4 vw b zum Rücken, platt, Arme angelegt",9,6,null,"1/1 ein 1/1 aus c","822°",14,6,null,4,"40/",6,3,null,10,"Salto vorwärts gebückt mit Anlauf",3]
["L6 S10",2,null,"7/4 rw c zum Rücken, 1/2 Schraube ein",9,6,null,"1/1 ein 0 aus b","820<",14,6,null,5,"801<",13,3,null,11," "," "]
["L7 S5",3,null,"7/4 rw b zum Rücken, 1/2 Schraube ein",9,6,null,"0 ein 1/1 aus b","802<",14,6,null,6,"822/",16,3,null,12," "," "]
["L7 S10",4,null,"2/1 Salto vw c aus der Rückenlage",10,6,null,"1/2 ein 3/2 aus c","813°",14,6]
["L8 S5",5,null,"7/4 Salto vw c zum Rücken, 1/1 aus",10,6,null,"11/4 (2 3/4) vw c mit 90° Hüftwinkel, Arme zur Decke","11000°R",13,6]
["L8 S11",6,null,"5/4 vw mit 3/2 Schraube b (Babyrudy b)",9,6,null,"Fliffis c aus der Rückenlage","901°",12,6,null,null,null,null,null,null,"BKÜ_17"]
["L9 S5",7,null,null,null,null,null,"Triffis c","12001°",17,6,null,null,null,null,null,null,"Element","Beschreibung","Wert"]
["L9 S11",8,null,"TBN_männlich_15_16",null,null,null,null,null,null,null,null,null,null,null,null,null,1,"Salto vorwärts gehockt aus dem Stand",5]
["L10 S5",9,null,"Beschreibung","Wert","MaxAbzug",null,"TN_weiblich_19",null,null,null,null,null,null,null,null,null,2,"Vorspreizen, Bestellschritt, Strecksprung 3/2 Drehung",3]
["L10 S11",10,null,"7/4 Salto vw b zum Rücken, 1/1 aus",10,6,null,"Beschreibung","Kürzel","Wert","MaxAbzug",null,null,null,null,null,null,3,"Rolle rückwärts durch Handstand mit 1/2 Drehung",4]
[null,null,null,"11/4 (2 3/4) Salto vw c zum Rücken",13,6,null,"Triffis c","12001°",17,6,null,null,null,null,null,null,4,"--> Strecksprung --> Salto vorwärts gehockt",4]
["Shuttles_männlich_9",null,null,"7/4 Salto rw c, 1/1 ein 1/2 aus",11,6,null,"Triffis b","12001<",20,6,null,null,null,null,null,null,5,"Wiener, 1/2 Drehung, absenken zum Stand",4]
["Shuttle","Punkte",null,"7/4 Salto rw b, 1/1 ein 1/2 aus",12,6,null,"1/2 ein 1/2 aus Triffis c","12101°",18,6,null,null,null,null,null,null,6,"Handstand mit zwei Hüpfern, abrollen",2]
["vor L3 S4",0,null,null,null,null,null,"1/1 ein 1/1 aus a","822/",16,6,null,null,null,null,null,null,7,"--> aufstehen mit gestreckten Beinen",3]
["L3 S4",1,null,null,null,null,null,"1/2 ein 3/2 aus b","813<",16,6,null,null,null,null,null,null,8,"Salto rückwärts gebückt",5]
["L3 S8",2,null,null,null,null,null,"3/2 ein 1/2 aus b","831<",16,6,null,null,null,null,null,null,9," "," "]
["L4 S4",3,null,null,null,null,null,"1/1 ein 0 aus a","820/",14,6,null,null,null,null,null,null,10," "," "]
["L4 S9",4,null,null,null,null,null,"0 ein 1/1 aus a","802/",14,6,null,null,null,null,null,null,11," "," "]
["L5 S5",5,null,null,null,null,null,"Fliffisrandi c","805°",15,6,null,null,null,null,null,null,12," "," "]
["L5 S9",6,null,null,null,null,null,"Fliffisrandi b","805<",17,6]
["L6 S5",7,null,null,null,null,null,"1/1 ein 2/1 aus c","824°",16,6]
["L6 S10",8,null,null,null,null,null,"1/1 ein 2/1 aus a","824/",18,6]
["L7 S5",9]
["L7 S10",10,null,null,null,null,null,"TN_männlich_13_ 14"]
[null,null,null,null,null,null,null,"Beschreibung","Kürzel","Wert","MaxAbzug"]
["Shuttles_männlich_10_11",null,null,null,null,null,null,"Rudolf","43/",8,6]
["Shuttle","Punkte",null,null,null,null,null,"Babyrudi","53/",9,6]
["vor L4 S4",0,null,null,null,null,null,"Fliffis c","801°",11,6]
["L4 S4",1,null,null,null,null,null,"Fliffis b","801<",13,6]
["L4 S9",2,null,null,null,null,null,"Doppelsalto rw b","800<",12,6]
["L5 S5",3,null,null,null,null,null,"1/2 ein 1/2 aus c","811°",12,6]
["L5 S9",4,null,null,null,null,null,"Doppelschraube rw","44/",9,6]
["L6 S5",5,null,null,null,null,null,"Fliffisrudi c","803°",13,6]
["L6 S10",6]
["L7 S5",7,null,null,null,null,null,"TN_männlich_15_16"]
["L7 S10",8,null,null,null,null,null,"Beschreibung","Kürzel","Wert","MaxAbzug"]
["L8 S5",9,null,null,null,null,null,"Fliffisrudi b","803<",15,6]
["L8 S11",10,null,null,null,null,null,"1/2 ein 1/2 aus b","811<",14,6]
[null,null,null,null,null,null,null,"1/1 ein 1/2 aus c","821°",13,6]
["Shuttles_männlich_12_13",null,null,null,null,null,null,"1/1 ein 1/2 aus b","821<",15,6]
["Shuttle","Punkte",null,null,null,null,null,"1/1 ein 1/1 aus c","822°",14,6]
["vor L6 S5",0,null,null,null,null,null,"Doppelsalto rw a","800/",12,6]
["L6 S5",1,null,null,null,null,null,"Triffis c","12001°",17,6]
["L6 S10",2,null,null,null,null,null,"11/4 (2 3/4) vw c mit 90° Hüftwinkel, Arme zur Decke","11000°R",13,6]
["L7 S5",3,null,null,null,null,null,"Fliffis c aus der Rückenlage","901°",12,6]
["L7 S10",4]
["L8 S5",5,null,null,null,null,null,"TN_männlich_17_18"]
["L8 S11",6,null,null,null,null,null,"Beschreibung","Kürzel","Wert","MaxAbzug"]
["L9 S5",7,null,null,null,null,null,"1/1 ein 1/2 aus b","821<",15,6]
["L9 S11",8,null,null,null,null,null,"11/4 (2 3/4) vw b","11000<R",15,6]
["L10 S5",9,null,null,null,null,null,"Fliffis b aus der Rückenlage","901<",14,6]
["L10 S11",10,null,null,null,null,null,"Triffis c","12001°",17,6]
[null,null,null,null,null,null,null,"Triffis b","12001<",20,6]
["Shuttles_männlich_14_16",null,null,null,null,null,null,"3/2 ein 1/2 aus b","831<",16,6]
["Shuttle","Punkte",null,null,null,null,null,"1/1 ein 1/1 aus a","822/",16,6]
["vor L7 S5",0,null,null,null,null,null,"Fliffisrandi c","805°",15,6]
["L7 S5",1,null,null,null,null,null,"Fliffisrandi b","805<",17,6]
["L7 S10",2,null,null,null,null,null,"1/1 ein 2/1 aus c","824°",16,6]
["L8 S5",3,null,null,null,null,null,"1/1 ein 2/1 aus a","824/",18,6]
["L8 S11",4]
["L9 S5",5,null,null,null,null,null,"TN_männlich_19"]
["L9 S11",6,null,null,null,null,null,"Beschreibung","Kürzel","Wert","MaxAbzug"]
["L10 S5",7,null,null,null,null,null,"Triffis b","12001<",20,6]
["L10 S11",8,null,null,null,null,null,"1/2 ein 1/2 aus Triffis c","12101°",18,6]
["L11 S6",9,null,null,null,null,null,"1/2 ein 1/2 aus Triffis b","12101<",21,6]
["L11 S12",10,null,null,null,null,null,"1/1 ein 2/1 aus a","824/",18,6]
[null,null,null,null,null,null,null,"1/1 ein 3/2 aus c","823°",15,6]
[null,null,null,null,null,null,null,"1/1 ein 3/2 aus b","823<",17,6]
["Shuttles_männlich_17",null,null,null,null,null,null,"1/1 ein 3/2 aus a","823/",17,6]
["Shuttle","Punkte",null,null,null,null,null,"Triffisrudi c","12003°",19,6]
["vor L8 S11",0,null,null,null,null,null,"Triffisrudi b","12003<",22,6]
["L8 S11",1,null,null,null,null,null,"1/1 ein Triffis c","12201°",19,6]
["L9 S5",2,null,null,null,null,null,"1/1 ein Triffis b","12201<",22,6]
["L9 S11",3,null,null,null,null,null,"2/1 ein 2/1 aus a","844/",20,6]
["L10 S5",4]
["L10 S11",5]
["L11 S6",6]
["L11 S12",7]
["L12 S6",8]
["L12 S12",9]
["L13 S6",10]

{"sheet":"Punktetabellen","index":6,"n_rows":49,"n_cols":17,"rows_kept":49,"cut":false,"hidden":true,"merged":[[40,3,40,5],[0,0,0,1],[7,0,7,1],[0,12,0,16],[30,3,30,5],[0,3,0,5],[15,3,15,5],[0,7,0,10],[10,7,10,10],[16,0,16,1]]}
["Querspagat",null,null,"Klimmzug",null,null,null,"Flieger",null,null,null,null,"Prellsprünge"]
["cm vom Boden","Punkte",null,"AK 9 - 11","AK 12 - 21","Ausführung",null,"AK 9","AK 10 - 11","AK 12 - 21","Ausführung",null,"AK 9","AK 10 - 11","AK 12 - 13","AK 14 - 21","Ausführung"]
[0,10,null,"Wiederholungen","Wiederholungen","Punkte",null,"Haltezeit","Haltezeit","Haltezeit","Punkte",null,"Wiederholungen","Wiederholungen","Wiederholungen","Wiederholungen","Punkte"]
["<5 cm",6,null,0,0,0,null,0,0,0,0,null,0,0,0,0,0]
["<10 cm",2,null,1,6,1,null,60,75,80,2,null,14,18,22,1,1]
["10 cm oder mehr",0,null,2,7,2,null,65,80,90,4,null,16,20,24,2,2]
[null,null,null,3,8,3,null,70,85,100,6,null,18,22,26,3,3]
["Bückbeweglichkeit",null,null,4,9,4,null,75,90,110,8,null,20,24,28,4,4]
["cm am Kasten","Punkte",null,5,10,5,null,80,100,120,10,null,22,26,30,5,5]
[-50,0,null,6,11,6,null,null,null,null,null,null,24,28,32,6,6]
[12,2,null,7,12,7,null,"Rollenverbindung",null,null,null,null,26,30,34,7,7]
[14,4,null,8,13,8,null,"AK 9","AK 10 - 11","AK 12 - 21","Ausführung",null,28,32,36,8,8]
[16,6,null,9,14,9,null,"Wiederholungen","Wiederholungen","Wiederholungen","Punkte",null,30,34,38,9,9]
[18,8,null,10,15,10,null,0,0,0,0,null,32,36,40,10,10]
[20,10,null,null,null,null,null,3,7,11,1]
[null,null,null,"Beinheben",null,null,null,5,9,13,2]
["Schweizer, Wiener",null,null,"AK 9","AK 10 - 21","Ausführung",null,7,11,15,3]
["AK 9 - 21","Ausführung",null,"Wiederholungen","Wiederholungen","Punkte",null,9,13,17,4]
["Wiederholungen","Punkte",null,0,0,0,null,11,15,19,5]
[0,0,null,3,5,1,null,13,17,21,6]
[1,2,null,4,6,2,null,15,19,23,7]
[2,4,null,5,7,3,null,17,21,25,8]
[3,6,null,6,8,4,null,19,23,27,9]
[4,8,null,7,9,5,null,21,25,29,10]
[5,10,null,8,10,6]
[null,null,null,9,12,7]
[null,null,null,10,13,8]
[null,null,null,11,14,9]
[null,null,null,12,15,10]
[]
[null,null,null,"Handstandstehen"]
[null,null,null,"AK 9","AK 10 - 21","Ausführung"]
[null,null,null,"Wiederholungen","Wiederholungen","Punkte"]
[null,null,null,0,0,0]
[null,null,null,40,10,2]
[null,null,null,45,15,4]
[null,null,null,50,20,6]
[null,null,null,55,25,8]
[null,null,null,60,30,10]
[]
[null,null,null,"Mindestpunktzahlen"]
[null,null,null,"ab AK","männlich","weiblich"]
[null,null,null,1,111,111]
[null,null,null,10,112,112]
[null,null,null,12,129,129]
[null,null,null,13,144,143]
[null,null,null,15,162,159]
[null,null,null,17,186,169]
[null,null,null,19,198,178]

{"sheet":"Standsprünge","index":7,"n_rows":15,"n_cols":3,"rows_kept":15,"cut":false,"hidden":true,"merged":[[0,0,0,2]]}
["Standsprunghöhe"]
["AK","weiblich","männlich"]
[9,13,13]
[10,13.5,13.5]
[11,14,14.3]
[12,14.5,14.8]
[13,15.2,15.3]
[14,15.5,15.8]
[15,16,16.3]
[16,16.3,16.8]
[17,16.3,17.3]
[18,16.399999999999999,17.600000000000001]
[19,16.5,17.899999999999999]
[20,16.600000000000001,18.2]
[21,16.7,18.5]